Workbook

Sheet Modelo
A5: MODELO - Deve ser adaptado utilizando os valores, taxas e prazos do contrato
A7: Valores em Reais
A8: Data da Liberação | B8: Liberação | C8: Spread BNDES (% a.a.) | D8: Sobretaxa Custo Financeiro (% a.a.) | E8: Taxa Cobrança BNDES (% a.a.)
A9: 2026-05-04 | B9: 348026 | C9: 1.25 | D9: -0.13 | E9: =C9+D9 -> 1.12
A10: *Atualizar a sobretaxa na data da contratação da operação com a taxa disponível no site do BNDES, em Moedas Contratuais, Sigla: SOBRETAXA LCD (Cód: LD1)
A12: Valores em Reais
A13: Data de Vencimento | B13: Índice de Atualização | C13: Principal Atualizado | D13: Juros Compensatórios | H13: Amortização | J13: Prestação
D14: Taxa | E14: Dias Úteis | F14: Multiplicador | G14: Juros Compensatórios | H14: N° de Parcelas Restantes Restantes | I14: Valor
A15: 2026-08-17 | B15: =ROUND(PRODUCT(_xlfn._xlws.FILTER(SELIC!$C$2:$C$4000,(SELIC!$A$2:$A$4000>Modelo!A9)*(SELIC!$A$2:$A$4000<=Modelo!A15),"")),15) -> 1.040296172 | C15: =round_to_even(B9*ROUND(B15,15),2) -> 362050.12 | D15: =E9 -> 1.12 | E15: =NETWORKDAYS(A9,A15-1,feriados) -> 74 | F15: =ROUND(B15*((1+D15%)^(E15/252)),15) -> 1.043704142 | G15: =round_to_even(B9*F15,2)-C15 -> 1186.06 | J15: =I15+G15 -> 1186.06
A16: 2026-11-16 | B16: =ROUND(PRODUCT(_xlfn._xlws.FILTER(SELIC!$C$2:$C$4000,(SELIC!$A$2:$A$4000>A15)*(SELIC!$A$2:$A$4000<=Modelo!A16),"")),15) -> 1.033653035 | C16: =round_to_even((C15-I15)*ROUND(B16,15),2) -> 374234.21 | D16: =D15 -> 1.12 | E16: =NETWORKDAYS(A15,A16-1,feriados) -> 62 | F16: =ROUND(B16*((1+D16%)^(E16/252)),15) -> 1.036489375 | G16: =round_to_even((C15-I15)*F16,2)-C16 -> 1026.89 | J16: 1026.89
A17: 2026-12-15 | B17: =ROUND(PRODUCT(_xlfn._xlws.FILTER(SELIC!$C$2:$C$4000,(SELIC!$A$2:$A$4000>A16)*(SELIC!$A$2:$A$4000<=Modelo!A17),"")),15) -> 1.010734354 | C17: =round_to_even((C16-I16)*ROUND(B17,15),2) -> 378251.37 | D17: =D16 -> 1.12 | E17: =NETWORKDAYS(A16,A17-1,feriados) -> 20 | F17: =ROUND(B17*((1+D17%)^(E17/252)),15) -> 1.011628185 | G17: =round_to_even((C16-I16)*F17,2)-C17 -> 334.5 | H17: 54 | I17: =round_to_even(C17/H17,2) -> 7004.66 | J17: =I17+G17 -> 7339.16
A18: 2027-01-15 | B18: =ROUND(PRODUCT(_xlfn._xlws.FILTER(SELIC!$C$2:$C$4000,(SELIC!$A$2:$A$4000>A17)*(SELIC!$A$2:$A$4000<=Modelo!A18),"")),15) -> 1.011274086 | C18: =round_to_even((C17-I17)*ROUND(B18,15),2) -> 375432.18 | D18: 1.12 | E18: =NETWORKDAYS(A17,A18-1,feriados) -> 21 | F18: 1.012213131 | G18: =round_to_even((C17-I17)*F18,2)-C18 -> 348.61 | H18: =H17-1 -> 53 | I18: =round_to_even(C18/H18,2) -> 7083.63 | J18: 7432.24
A19: 2027-02-15 | B19: =ROUND(PRODUCT(_xlfn._xlws.FILTER(SELIC!$C$2:$C$4000,(SELIC!$A$2:$A$4000>A18)*(SELIC!$A$2:$A$4000<=Modelo!A19),"")),15) -> 1.01019491 | C19: =round_to_even((C18-I18)*ROUND(B19,15),2) -> 372103.83 | D19: 1.12 | E19: 19 | F19: 1.011043578 | G19: =round_to_even((C18-I18)*F19,2)-C19 -> 312.61 | H19: 52 | I19: =round_to_even(C19/H19,2) -> 7155.84 | J19: 7468.45
A20: 2027-03-15 | B20: =ROUND(PRODUCT(_xlfn._xlws.FILTER(SELIC!$C$2:$C$4000,(SELIC!$A$2:$A$4000>A19)*(SELIC!$A$2:$A$4000<=Modelo!A20),"")),15) -> 1.010734354 | C20: =round_to_even((C19-I19)*ROUND(B20,15),2) -> 368865.47 | D20: 1.12 | E20: 20 | F20: 1.011628185 | G20: =round_to_even((C19-I19)*F20,2)-C20 -> 326.2 | H20: 51 | I20: =round_to_even(C20/H20,2) -> 7232.66 | J20: 7558.86
A21: 2027-04-15 | B21: =ROUND(PRODUCT(_xlfn._xlws.FILTER(SELIC!$C$2:$C$4000,(SELIC!$A$2:$A$4000>A20)*(SELIC!$A$2:$A$4000<=Modelo!A21),"")),15) -> 1.011814106 | C21: =round_to_even((C20-I20)*ROUND(B21,15),2) -> 365905.18 | D21: 1.12 | E21: 22 | F21: 1.012798415 | G21: =round_to_even((C20-I20)*F21,2)-C21 -> 355.96 | H21: 50 | I21: =round_to_even(C21/H21,2) -> 7318.1 | J21: 7674.06
A22: 2027-05-17 | B22: =ROUND(PRODUCT(_xlfn._xlws.FILTER(SELIC!$C$2:$C$4000,(SELIC!$A$2:$A$4000>A21)*(SELIC!$A$2:$A$4000<=Modelo!A22),"")),15) -> 1.011274086 | C22: =round_to_even((C21-I21)*ROUND(B22,15),2) -> 362629.82 | D22: 1.12 | E22: =NETWORKDAYS(A21,A22-1,feriados) -> 21 | F22: =ROUND(B22*((1+D22%)^(E22/252)),15) -> 1.012213131 | G22: =round_to_even((C21-I21)*F22,2)-C22 -> 336.73 | H22: 49 | I22: =round_to_even(C22/H22,2) -> 7400.61 | J22: =I22+G22 -> 7737.34
A23: continua...

Sheet SELIC
A1: Data | B1: Selic diária D-2 | C1: Fator Diário | E1: Atenção:
A2: 2026-01-02 | B2: 0.055131 | C2: =1+B2/100 -> 1.00055131 | E2: Atualizar a tabela com a taxa disponível no site do BNDES, em Moedas Contratuais, Sigla: TAXA SELIC D-2 (Cód: 015)
A3: 2026-01-05 | B3: 0.055131 | C3: =1+B3/100 -> 1.00055131 | E3: https://www.bndes.gov.br/SiteBNDES/bndes/bndes_pt/Galerias/Convivencia/Moedas_Contratuais/index.html
A4: 2026-01-06 | B4: 0.055131 | C4: 1.00055131 | E4: Se a taxa ainda não tiver sido divulgada, o sistema projeta utilizando a última disponível.
A5: 2026-01-07 | B5: 0.055131 | C5: 1.00055131
A6: 2026-01-08 | B6: 0.055131 | C6: 1.00055131
A7: 2026-01-09 | B7: 0.055131 | C7: 1.00055131
A8: 2026-01-12 | B8: 0.055131 | C8: 1.00055131
A9: 2026-01-13 | B9: 0.055131 | C9: 1.00055131
A10: 2026-01-14 | B10: 0.055131 | C10: 1.00055131
A11: 2026-01-15 | B11: 0.055131 | C11: 1.00055131
A12: 2026-01-16 | B12: 0.055131 | C12: 1.00055131
A13: 2026-01-19 | B13: 0.055131 | C13: 1.00055131
A14: 2026-01-20 | B14: 0.055131 | C14: 1.00055131
A15: 2026-01-21 | B15: 0.055131 | C15: 1.00055131
A16: 2026-01-22 | B16: 0.055131 | C16: 1.00055131
A17: 2026-01-23 | B17: 0.055131 | C17: 1.00055131
A18: 2026-01-26 | B18: 0.055131 | C18: 1.00055131
A19: 2026-01-27 | B19: 0.055131 | C19: 1.00055131
A20: 2026-01-28 | B20: 0.055131 | C20: 1.00055131
A21: 2026-01-29 | B21: 0.055131 | C21: 1.00055131
A22: 2026-01-30 | B22: 0.055131 | C22: 1.00055131
A23: 2026-02-02 | B23: 0.055131 | C23: 1.00055131
A24: 2026-02-03 | B24: 0.055131 | C24: 1.00055131
A25: 2026-02-04 | B25: 0.055131 | C25: 1.00055131
A26: 2026-02-05 | B26: 0.055131 | C26: 1.00055131
A27: 2026-02-06 | B27: 0.055131 | C27: 1.00055131
A28: 2026-02-09 | B28: 0.055131 | C28: 1.00055131
A29: 2026-02-10 | B29: 0.055131 | C29: 1.00055131
A30: 2026-02-11 | B30: 0.055131 | C30: 1.00055131
A31: 2026-02-12 | B31: 0.055131 | C31: 1.00055131
A32: 2026-02-13 | B32: 0.055131 | C32: 1.00055131
A33: 2026-02-18 | B33: 0.055131 | C33: 1.00055131
A34: 2026-02-19 | B34: 0.055131 | C34: 1.00055131
A35: 2026-02-20 | B35: 0.055131 | C35: 1.00055131
A36: 2026-02-23 | B36: 0.055131 | C36: 1.00055131
A37: 2026-02-24 | B37: 0.055131 | C37: 1.00055131
A38: 2026-02-25 | B38: 0.055131 | C38: 1.00055131
A39: 2026-02-26 | B39: 0.055131 | C39: 1.00055131
A40: 2026-02-27 | B40: 0.055131 | C40: 1.00055131
A41: 2026-03-02 | B41: 0.055131 | C41: 1.00055131
A42: 2026-03-03 | B42: 0.055131 | C42: 1.00055131
A43: 2026-03-04 | B43: 0.055131 | C43: 1.00055131
A44: 2026-03-05 | B44: 0.055131 | C44: 1.00055131
A45: 2026-03-06 | B45: 0.055131 | C45: 1.00055131
A46: 2026-03-09 | B46: 0.055131 | C46: 1.00055131
A47: 2026-03-10 | B47: 0.055131 | C47: 1.00055131
A48: 2026-03-11 | B48: 0.055131 | C48: 1.00055131
A49: 2026-03-12 | B49: 0.055131 | C49: 1.00055131
A50: 2026-03-13 | B50: 0.055131 | C50: 1.00055131
A51: 2026-03-16 | B51: 0.055131 | C51: 1.00055131
A52: 2026-03-17 | B52: 0.055131 | C52: 1.00055131
A53: 2026-03-18 | B53: 0.055131 | C53: 1.00055131
A54: 2026-03-19 | B54: 0.055131 | C54: 1.00055131
A55: 2026-03-20 | B55: 0.055131 | C55: 1.00055131
A56: 2026-03-23 | B56: 0.054266 | C56: 1.00054266
A57: 2026-03-24 | B57: 0.054266 | C57: 1.00054266
A58: 2026-03-25 | B58: 0.054266 | C58: 1.00054266
A59: 2026-03-26 | B59: 0.054266 | C59: 1.00054266
A60: 2026-03-27 | B60: 0.054266 | C60: 1.00054266
A61: 2026-03-30 | B61: 0.054266 | C61: 1.00054266
A62: 2026-03-31 | B62: 0.054266 | C62: 1.00054266
A63: 2026-04-01 | B63: 0.054266 | C63: 1.00054266
A64: 2026-04-02 | B64: 0.054266 | C64: 1.00054266
A65: 2026-04-06 | B65: 0.054266 | C65: 1.00054266
A66: 2026-04-07 | B66: 0.054266 | C66: 1.00054266
A67: 2026-04-08 | B67: 0.054266 | C67: =1+B67/100 -> 1.00054266
A68: 2026-04-09 | B68: 0.054266 | C68: 1.00054266
A69: 2026-04-10 | B69: 0.054266 | C69: 1.00054266
A70: 2026-04-13 | B70: 0.054266 | C70: 1.00054266
A71: 2026-04-14 | B71: 0.054266 | C71: 1.00054266
A72: 2026-04-15 | B72: 0.054266 | C72: 1.00054266
A73: 2026-04-16 | B73: 0.054266 | C73: 1.00054266
A74: 2026-04-17 | B74: 0.054266 | C74: 1.00054266
A75: 2026-04-20 | B75: 0.054266 | C75: 1.00054266
A76: 2026-04-22 | B76: 0.054266 | C76: 1.00054266
A77: 2026-04-23 | B77: 0.054266 | C77: 1.00054266
A78: 2026-04-24 | B78: 0.054266 | C78: 1.00054266
A79: 2026-04-27 | B79: 0.054266 | C79: 1.00054266
A80: 2026-04-28 | B80: 0.054266 | C80: 1.00054266
A81: 2026-04-29 | B81: 0.054266 | C81: 1.00054266
A82: 2026-04-30 | B82: 0.054266 | C82: 1.00054266
A83: 2026-05-04 | B83: 0.054266 | C83: 1.00054266
A84: 2026-05-05 | B84: 0.0534 | C84: 1.000534
A85: 2026-05-06 | B85: 0.0534 | C85: 1.000534
A86: 2026-05-07 | B86: 0.0534 | C86: 1.000534
A87: 2026-05-08 | B87: 0.0534 | C87: 1.000534
A88: 2026-05-11 | B88: 0.0534 | C88: 1.000534
A89: 2026-05-12 | B89: 0.0534 | C89: 1.000534
A90: 2026-05-13 | B90: 0.0534 | C90: 1.000534
A91: 2026-05-14 | B91: 0.0534 | C91: 1.000534
A92: 2026-05-15 | B92: 0.0534 | C92: 1.000534
A93: 2026-05-18 | B93: 0.0534 | C93: 1.000534
A94: 2026-05-19 | B94: 0.0534 | C94: 1.000534
A95: 2026-05-20 | B95: 0.0534 | C95: 1.000534
A96: 2026-05-21 | B96: 0.0534 | C96: 1.000534
A97: 2026-05-22 | B97: 0.0534 | C97: 1.000534
A98: 2026-05-25 | B98: 0.0534 | C98: 1.000534
A99: 2026-05-26 | B99: 0.0534 | C99: 1.000534
A100: 2026-05-27 | B100: 0.0534 | C100: 1.000534
A101: 2026-05-28 | B101: 0.0534 | C101: 1.000534
A102: 2026-05-29 | B102: 0.0534 | C102: 1.000534
A103: 2026-06-01 | B103: 0.0534 | C103: 1.000534
A104: 2026-06-02 | B104: 0.0534 | C104: 1.000534
A105: 2026-06-03 | B105: 0.0534 | C105: 1.000534
A106: 2026-06-05 | B106: 0.0534 | C106: 1.000534
A107: 2026-06-08 | B107: 0.0534 | C107: 1.000534
A108: 2026-06-09 | B108: 0.0534 | C108: 1.000534 | D108: alterar sempre que houver mudança de taxa
A109: 2026-06-10 | B109: 0.0534 | C109: 1.000534
A110: 2026-06-11 | B110: 0.0534 | C110: 1.000534
A111: 2026-06-12 | B111: 0.0534 | C111: 1.000534
A112: 2026-06-15 | B112: 0.0534 | C112: 1.000534
A113: 2026-06-16 | B113: 0.0534 | C113: 1.000534
A114: 2026-06-17 | B114: 0.0534 | C114: 1.000534
A115: 2026-06-18 | B115: 0.0534 | C115: 1.000534
A116: 2026-06-19 | B116: 0.0534 | C116: 1.000534
A117: 2026-06-22 | B117: 0.0534 | C117: 1.000534
A118: 2026-06-23 | B118: 0.0534 | C118: 1.000534
A119: 2026-06-24 | B119: 0.0534 | C119: 1.000534
A120: 2026-06-25 | B120: 0.0534 | C120: 1.000534
A121: 2026-06-26 | B121: 0.0534 | C121: 1.000534
A122: 2026-06-29 | B122: 0.0534 | C122: 1.000534
A123: 2026-06-30 | B123: 0.0534 | C123: 1.000534
A124: 2026-07-01 | B124: 0.0534 | C124: 1.000534
A125: 2026-07-02 | B125: 0.0534 | C125: 1.000534
A126: 2026-07-03 | B126: 0.0534 | C126: 1.000534
A127: 2026-07-06 | B127: 0.0534 | C127: 1.000534
A128: 2026-07-07 | B128: 0.0534 | C128: 1.000534
A129: 2026-07-08 | B129: 0.0534 | C129: 1.000534
A130: 2026-07-09 | B130: 0.0534 | C130: 1.000534
A131: 2026-07-10 | B131: 0.0534 | C131: =1+B131/100 -> 1.000534
A132: 2026-07-13 | B132: 0.0534 | C132: 1.000534
A133: 2026-07-14 | B133: 0.0534 | C133: 1.000534
A134: 2026-07-15 | B134: 0.0534 | C134: 1.000534
A135: 2026-07-16 | B135: 0.0534 | C135: 1.000534
A136: 2026-07-17 | B136: 0.0534 | C136: 1.000534
A137: 2026-07-20 | B137: 0.0534 | C137: 1.000534
A138: 2026-07-21 | B138: 0.0534 | C138: 1.000534
A139: 2026-07-22 | B139: 0.0534 | C139: 1.000534
A140: 2026-07-23 | B140: 0.0534 | C140: 1.000534
A141: 2026-07-24 | B141: 0.0534 | C141: 1.000534
A142: 2026-07-27 | B142: 0.0534 | C142: 1.000534
A143: 2026-07-28 | B143: 0.0534 | C143: 1.000534
A144: 2026-07-29 | B144: 0.0534 | C144: 1.000534
A145: 2026-07-30 | B145: 0.0534 | C145: 1.000534
A146: 2026-07-31 | B146: 0.0534 | C146: 1.000534
A147: 2026-08-03 | B147: 0.0534 | C147: 1.000534
A148: 2026-08-04 | B148: 0.0534 | C148: 1.000534
A149: 2026-08-05 | B149: 0.0534 | C149: 1.000534
A150: 2026-08-06 | B150: 0.0534 | C150: 1.000534
A151: 2026-08-07 | B151: 0.0534 | C151: 1.000534
A152: 2026-08-10 | B152: 0.0534 | C152: 1.000534
A153: 2026-08-11 | B153: 0.0534 | C153: 1.000534
A154: 2026-08-12 | B154: 0.0534 | C154: 1.000534
A155: 2026-08-13 | B155: 0.0534 | C155: 1.000534
A156: 2026-08-14 | B156: 0.0534 | C156: 1.000534
A157: 2026-08-17 | B157: 0.0534 | C157: 1.000534
A158: 2026-08-18 | B158: 0.0534 | C158: 1.000534
A159: 2026-08-19 | B159: 0.0534 | C159: 1.000534
A160: 2026-08-20 | B160: 0.0534 | C160: 1.000534
A161: 2026-08-21 | B161: 0.0534 | C161: 1.000534
A162: 2026-08-24 | B162: 0.0534 | C162: 1.000534
A163: 2026-08-25 | B163: 0.0534 | C163: 1.000534
A164: 2026-08-26 | B164: 0.0534 | C164: 1.000534
A165: 2026-08-27 | B165: 0.0534 | C165: 1.000534
A166: 2026-08-28 | B166: 0.0534 | C166: 1.000534
A167: 2026-08-31 | B167: 0.0534 | C167: 1.000534
A168: 2026-09-01 | B168: 0.0534 | C168: 1.000534
A169: 2026-09-02 | B169: 0.0534 | C169: 1.000534
A170: 2026-09-03 | B170: 0.0534 | C170: 1.000534
A171: 2026-09-04 | B171: 0.0534 | C171: 1.000534
A172: 2026-09-08 | B172: 0.0534 | C172: 1.000534
A173: 2026-09-09 | B173: 0.0534 | C173: 1.000534
A174: 2026-09-10 | B174: 0.0534 | C174: 1.000534
A175: 2026-09-11 | B175: 0.0534 | C175: 1.000534
A176: 2026-09-14 | B176: 0.0534 | C176: 1.000534
A177: 2026-09-15 | B177: 0.0534 | C177: 1.000534
A178: 2026-09-16 | B178: 0.0534 | C178: 1.000534
A179: 2026-09-17 | B179: 0.0534 | C179: 1.000534
A180: 2026-09-18 | B180: 0.0534 | C180: 1.000534
A181: 2026-09-21 | B181: 0.0534 | C181: 1.000534
A182: 2026-09-22 | B182: 0.0534 | C182: 1.000534
A183: 2026-09-23 | B183: 0.0534 | C183: 1.000534
A184: 2026-09-24 | B184: 0.0534 | C184: 1.000534
A185: 2026-09-25 | B185: 0.0534 | C185: 1.000534
A186: 2026-09-28 | B186: 0.0534 | C186: 1.000534
A187: 2026-09-29 | B187: 0.0534 | C187: 1.000534
A188: 2026-09-30 | B188: 0.0534 | C188: 1.000534
A189: 2026-10-01 | B189: 0.0534 | C189: 1.000534
A190: 2026-10-02 | B190: 0.0534 | C190: 1.000534
A191: 2026-10-05 | B191: 0.0534 | C191: 1.000534
A192: 2026-10-06 | B192: 0.0534 | C192: 1.000534
A193: 2026-10-07 | B193: 0.0534 | C193: 1.000534
A194: 2026-10-08 | B194: 0.0534 | C194: 1.000534
A195: 2026-10-09 | B195: 0.0534 | C195: =1+B195/100 -> 1.000534
A196: 2026-10-13 | B196: 0.0534 | C196: 1.000534
A197: 2026-10-14 | B197: 0.0534 | C197: 1.000534
A198: 2026-10-15 | B198: 0.0534 | C198: 1.000534
A199: 2026-10-16 | B199: 0.0534 | C199: 1.000534
A200: 2026-10-19 | B200: 0.0534 | C200: 1.000534
... 3556 more rows

Sheet Feriados
A1: FERIADOS
A2: 2009-01-01
A3: 2009-02-23
A4: 2009-02-24
A5: 2009-04-10
A6: 2009-04-21
A7: 2009-05-01
A8: 2009-06-11
A9: 2009-09-07
A10: 2009-10-12
A11: 2009-11-02
A12: 2009-11-15
A13: 2009-12-25
A14: 2010-01-01
A15: 2010-02-15
A16: 2010-02-16
A17: 2010-04-02
A18: 2010-04-21
A19: 2010-05-01
A20: 2010-06-03
A21: 2010-09-07
A22: 2010-10-12
A23: 2010-11-02
A24: 2010-11-15
A25: 2010-12-25
A26: 2011-01-01
A27: 2011-03-07
A28: 2011-03-08
A29: 2011-04-21
A30: 2011-04-22
A31: 2011-05-01
A32: 2011-06-23
A33: 2011-09-07
A34: 2011-10-12
A35: 2011-11-02
A36: 2011-11-15
A37: 2011-12-25
A38: 2012-01-01
A39: 2012-02-20
A40: 2012-02-21
A41: 2012-04-06
A42: 2012-04-21
A43: 2012-05-01
A44: 2012-06-07
A45: 2012-09-07
A46: 2012-10-12
A47: 2012-11-02
A48: 2012-11-15
A49: 2012-12-25
A50: 2013-01-01
A51: 2013-02-11
A52: 2013-02-12
A53: 2013-03-29
A54: 2013-04-21
A55: 2013-05-01
A56: 2013-05-30
A57: 2013-09-07
A58: 2013-10-12
A59: 2013-11-02
A60: 2013-11-15
A61: 2013-12-25
A62: 2014-01-01
A63: 2014-03-03
A64: 2014-03-04
A65: 2014-04-18
A66: 2014-04-21
A67: 2014-05-01
A68: 2014-06-19
A69: 2014-09-07
A70: 2014-10-12
A71: 2014-11-02
A72: 2014-11-15
A73: 2014-12-25
A74: 2015-01-01
A75: 2015-02-16
A76: 2015-02-17
A77: 2015-04-03
A78: 2015-04-21
A79: 2015-05-01
A80: 2015-06-04
A81: 2015-09-07
A82: 2015-10-12
A83: 2015-11-02
A84: 2015-11-15
A85: 2015-12-25
A86: 2016-01-01
A87: 2016-02-08
A88: 2016-02-09
A89: 2016-03-25
A90: 2016-04-21
A91: 2016-05-01
A92: 2016-05-26
A93: 2016-09-07
A94: 2016-10-12
A95: 2016-11-02
A96: 2016-11-15
A97: 2016-12-25
A98: 2017-01-01
A99: 2017-02-27
A100: 2017-02-28
A101: 2017-04-14
A102: 2017-04-21
A103: 2017-05-01
A104: 2017-06-15
A105: 2017-09-07
A106: 2017-10-12
A107: 2017-11-02
A108: 2017-11-15
A109: 2017-12-25
A110: 2018-01-01
A111: 2018-02-12
A112: 2018-02-13
A113: 2018-03-30
A114: 2018-04-21
A115: 2018-05-01
A116: 2018-05-31
A117: 2018-09-07
A118: 2018-10-12
A119: 2018-11-02
A120: 2018-11-15
A121: 2018-12-25
A122: 2019-01-01
A123: 2019-03-04
A124: 2019-03-05
A125: 2019-04-19
A126: 2019-04-21
A127: 2019-05-01
A128: 2019-06-20
A129: 2019-09-07
A130: 2019-10-12
A131: 2019-11-02
A132: 2019-11-15
A133: 2019-12-25
A134: 2020-01-01
A135: 2020-02-24
A136: 2020-02-25
A137: 2020-04-10
A138: 2020-04-21
A139: 2020-05-01
A140: 2020-06-11
A141: 2020-09-07
A142: 2020-10-12
A143: 2020-11-02
A144: 2020-11-15
A145: 2020-12-25
A146: 2021-01-01
A147: 2021-02-15
A148: 2021-02-16
A149: 2021-04-02
A150: 2021-04-21
A151: 2021-05-01
A152: 2021-06-03
A153: 2021-09-07
A154: 2021-10-12
A155: 2021-11-02
A156: 2021-11-15
A157: 2021-12-25
A158: 2022-01-01
A159: 2022-02-28
A160: 2022-03-01
A161: 2022-04-15
A162: 2022-04-21
A163: 2022-05-01
A164: 2022-06-16
A165: 2022-09-07
A166: 2022-10-12
A167: 2022-11-02
A168: 2022-11-15
A169: 2022-12-25
A170: 2023-01-01
A171: 2023-02-20
A172: 2023-02-21
A173: 2023-04-07
A174: 2023-04-21
A175: 2023-05-01
A176: 2023-06-08
A177: 2023-09-07
A178: 2023-10-12
A179: 2023-11-02
A180: 2023-11-15
A181: 2023-12-25
A182: 2024-01-01
A183: 2024-02-12
A184: 2024-02-13
A185: 2024-03-29
A186: 2024-04-21
A187: 2024-05-01
A188: 2024-05-30
A189: 2024-09-07
A190: 2024-10-12
A191: 2024-11-02
A192: 2024-11-15
A193: 2024-11-20
A194: 2024-12-25
A195: 2025-01-01
A196: 2025-03-03
A197: 2025-03-04
A198: 2025-04-18
A199: 2025-04-21
A200: 2025-05-01
... 462 more rows
